Cogmind - Beta 10.1 @@@ ROGUE MODE // 2020.09.24 @ 21:08:36 Player: Turbografx16 Result: Self-destructed Performance ------------- Evolutions (2) 1000 Regions Visited (5) 1000 Robots Destroyed (28) 140 Value Destroyed (813) 813 Prototype IDs (1) 20 Alien Tech Used (0) 0 Bonus (0) 0 TOTAL SCORE: 2973 Bonus ------- None Cogmind --------- Core Integrity 422/550 Matter 283/300 Energy 100/100 System Corruption 0% Temperature Cool (9) Movement Treading (165) Location -8/Materials Parts ------- > --- POWER (1) -------- (None) > --- PROPULSION (3) --- Armored Treads Armored Treads Medium Treads > --- UTILITY (5) ------ Large Storage Unit Signal Interpreter Hardened Heavy Armor Plating Improved Light Armor Plating > --- WEAPON (2) ------- Mini Grenade Launcher > --- INVENTORY (10) --- Light Nuclear Core Medium Storage Unit Visual Processing Unit Sensor Array Long-range Terrain Scanner Maneuvering Thrusters Powered Armor Peak State ------------ > --- POWER ------------ Light Nuclear Core > --- PROPULSION ------- Armored Treads Armored Treads Medium Treads > --- UTILITY ---------- Large Storage Unit Signal Interpreter Long-range Terrain Scanner Decoy Drone Bay > --- WEAPON ----------- Assault Rifle Light Assault Rifle > --- INVENTORY -------- Light Nuclear Core Medium Storage Unit Visual Processing Unit Sensor Array Maneuvering Thrusters Hardened Heavy Armor Plating Improved Light Armor Plating Powered Armor Mini Grenade Launcher [Rating: 37] Favorites ----------- Power Ion Engine Engine Ion Engine Power Core Light Nuclear Core Propulsion Light Treads Treads Light Treads Leg Aluminum Leg Utility Large Storage Unit Device Long-range Terrain Scanner Storage Large Storage Unit Processor Signal Interpreter Protection Powered Armor Weapon Assault Rifle Energy Gun EM Pulse Gun Ballistic Gun Assault Rifle Launcher Mini Grenade Launcher Special Weapon Mining Laser Build | -11 -10 -10 -10 -9 -8 ------- Run | Scr Mat Min Exi Min Mat Slots Evolved 4 | . . . . . 4 Power . | . . . . . . Propulsion 1 | . . . . . 1 Utility 3 | . . . . . 3 Weapon . | . . . . . . Parts Attached 23 | 1 6 3 . 4 9 Power 1 | . . . . 1 . Engine . | . . . . . . Core 1 | . . . . 1 . Reactor . | . . . . . . Propulsion 6 | . 2 . . 2 2 Treads 6 | . 2 . . 2 2 Leg . | . . . . . . Wheel . | . . . . . . Hover . | . . . . . . Flight . | . . . . . . Utility 9 | . 2 . . 1 6 Device 3 | . . . . . 3 Storage 2 | . 2 . . . . Processor 1 | . . . . . 1 Hackware . | . . . . . . Protection 3 | . . . . 1 2 Artifact . | . . . . . . Weapon 7 | 1 2 3 . . 1 Energy Gun 2 | 1 1 . . . . Energy Cannon . | . . . . . . Ballistic Gun 3 | . 1 2 . . . Ballistic Cannon . | . . . . . . Launcher 1 | . . . . . 1 Special Weapon 1 | . . 1 . . . Impact Weapon . | . . . . . . Slashing Weapon . | . . . . . . Piercing Weapon . | . . . . . . Special Melee Weapon . | . . . . . . Unidentified Prototypes 1 | . . . . . 1 Parts Lost 6 | . 1 2 . . 3 Power 1 | . . . . . 1 Propulsion . | . . . . . . Utility . | . . . . . . Weapon 5 | . 1 2 . . 2 Highest Loss Streak 3 | . 1 2 . . 3 Average Slot Usage (%) 95 | . 99 87 100 100 85 Engine 9 | . 14 14 14 . . Core 3 | . . . . 13 7 Treads 27 | . 27 28 28 28 24 Device 1 | . . . . . 7 Storage 23 | . 27 28 28 21 9 Processor 1 | . . . . . 9 Protection 2 | . . . . 6 10 Energy Gun 2 | . 14 1 . . . Ballistic Gun 20 | . 13 14 28 28 15 Naked Turns . | . . . . . . Heaviest Build 47 | 13 33 33 32 34 47 Greatest Support 68 | 20 40 40 40 48 68 Greatest Overweight (x) . | . . . . . . Average Overweight (x) . | . . . . . . Largest Inventory Capacity 14 | 6 14 14 14 14 10 Average Capacity 13 | 6 13 14 14 12 10 Most Carried 14 | 6 8 9 8 14 10 Average Carried 8 | 5 6 8 8 11 8 Final Capacity 14 | 6 14 14 14 10 10 Final Carried 10 | 3 8 8 8 10 7 Class Distribution -------------------- 100% | Mutant Dominant Class ---------------- Mutant | -10/Materials Mutant | -10/Mines Mutant | -10/Exiles Mutant | -9/Mines Mutant | -8/Materials Resources | -11 -10 -10 -10 -9 -8 ----------- Run | Scr Mat Min Exi Min Mat Matter Collected 741 | 200 82 49 . 152 258 Remotely . | . . . . . . Salvage Created 894 | . 193 46 . 134 521 Parts 49 | . 10 4 . 12 23 Haulers Intercepted . | . . . . . . Recyclers Shooed 1 | . . . . . 1 Parts Field Recycled . | . . . . . . Retrieved Matter . | . . . . . . Parts Self-Destructed . | . . . . . . Prevented . | . . . . . . Kills | -11 -10 -10 -10 -9 -8 ------- Run | Scr Mat Min Exi Min Mat Combat Hostiles Destroyed 26 | . 4 3 . 8 11 Guns 20 | . 3 3 . 8 6 AOE 6 | . 1 . . . 5 Classes Destroyed 5 | . 2 1 . . 2 Recycler 1 | . . . . . 1 Operator 1 | . 1 . . . . Swarmer 11 | . . 3 . 8 . Grunt 14 | . 4 . . . 10 Sentry 1 | . . . . . 1 Best Kill Streak 6 | . 3 3 . 4 6 Combat Bots Only 6 | . 3 3 . 4 6 Max Kills in Single Turn 2 | . 1 1 . 2 1 Gunslinging 1 | . . . . 1 . Exploded 1 | . 1 . . . 1 Melee . | . . . . . . Uniques/NPCs Destroyed . | . . . . . . Combat | -11 -10 -10 -10 -9 -8 -------- Run | Scr Mat Min Exi Min Mat Damage Taken 2247 | . 336 306 . 286 1319 Core 269 | . 40 55 . 46 128 Absorbed by Shields . | . . . . . . Core Remaining (%) 71 | 100 . . . 43 . Volleys Fired 68 | . 10 11 . 13 34 Largest 2 | . 2 1 . 2 2 Hottest 100 | . 80 100 . 40 40 Shots Fired 118 | . 20 10 . 29 59 Gun 105 | . 20 6 . 29 50 Cannon . | . . . . . . Launcher 9 | . . . . . 9 Special 4 | . . 4 . . . Kinetic 89 | . 4 6 . 29 50 Thermal 4 | . . 4 . . . Explosive 9 | . . . . . 9 Electromagnetic 16 | . 16 . . . . Robot Hit Streak 16 | . 10 12 . 4 16 Robot Miss Streak 3 | . 2 3 . 2 2 Penetration Max . | . . . . . . Secondary Targets 6 | . 1 . . 3 2 Max Gunslinging Chain 1 | . 1 . . 1 1 Shots Hit Robots 81 | . 15 3 . 15 48 Core Hits 53 | . 7 3 . 10 33 Critical Hits 1 | . . . . . 1 Critical Kills 1 | . . . . . 1 Critical Parts Destroyed . | . . . . . . Melee Attacks . | . . . . . . Impact . | . . . . . . Slashing . | . . . . . . Piercing . | . . . . . . Sneak Attacks . | . . . . . . Combat Hostiles . | . . . . . . Follow-up Attacks . | . . . . . . Damage Inflicted 1587 | . 234 37 . 124 1192 Guns 765 | . 175 37 . 124 429 Cannons . | . . . . . . Explosions 822 | . 59 . . . 763 Melee . | . . . . . . Ramming . | . . . . . . Kinetic 603 | . 13 37 . 124 429 Thermal 59 | . 59 . . . . Explosive 763 | . . . . . 763 Electromagnetic 162 | . 162 . . . . Impact . | . . . . . . Slashing . | . . . . . . Piercing . | . . . . . . Highest Corruption 7 | . 1 7 7 7 . Average Corruption 5 | . 1 6 7 7 . Corruption Purged . | . . . . . . Effects 49 | . 2 14 15 18 . Message Errors 14 | . 2 4 4 4 . Matter Fused 10 | . . 3 4 3 . Heat Flow Errors 3 | . . . 2 1 . Energy Discharges 8 | . . 3 3 2 . Data Loss (minor) 7 | . . 2 2 3 . Data Loss (major) 2 | . . . . 2 . Misfires 3 | . . . . 3 . Targeting Errors 1 | . . 1 . . . Weapon Failures 1 | . . 1 . . . Overload Shots . | . . . . . . Overflow Damage 12 | . 5 . . . 7 Projectiles . | . . . . . . Explosions 12 | . 5 . . . 7 Melee . | . . . . . . Knockbacks . | . . . . . . Impact . | . . . . . . Kinetic . | . . . . . . Secondary . | . . . . . . Self-Inflicted Damage 272 | . 40 . . . 232 Shots 8 | . 1 . . . 7 Rammed . | . . . . . . Targets Rammed . | . . . . . . Kicked . | . . . . . . Crushed . | . . . . . . Highest Temperature 353 | . 150 42 235 211 353 Average Temperature 108 | . 77 16 98 37 151 Received Heat Transfer 774 | . 162 . . . 612 Effects 3 | . . . 1 . 2 Energy Bleed 1 | . . . 1 . . Interference 1 | . . . . . 1 Short Circuit 1 | . . . . . 1 Siege Activations . | . . . . . . Robots Corrupted . | . . . . . . Combat Hostiles . | . . . . . . Parts Fried 1 | . 1 . . . . Impact Corruptions . | . . . . . . Robots Melted . | . . . . . . Combat Hostiles . | . . . . . . Parts Melted . | . . . . . . Heat Transferred 50 | . 50 . . . . Parts Sabotaged . | . . . . . . Parts Stolen . | . . . . . . Parts Stripped . | . . . . . . Power Chain Reactions 2 | . 2 . . . . Missiles Intercepted . | . . . . . . Alert | -11 -10 -10 -10 -9 -8 ------- Run | Scr Mat Min Exi Min Mat Peak Influence 320 | . 189 70 . 195 320 Initial 5 | . . 5 . . . Average 67 | . 117 9 . 76 91 Maximum Alert Level 1 | . . . . . 1 Low Security (%) 97 | 100 100 100 . 100 87 Level 1 2 | . . . . . 12 Level 2 . | . . . . . . Level 3 . | . . . . . . Level 4 . | . . . . . . Level 5 . | . . . . . . High Security . | . . . . . . Max Security . | . . . . . . Squads Dispatched 6 | . 2 . . . 4 Investigation 1 | . 1 . . . . Extermination . | . . . . . . Reinforcement 5 | . 1 . . . 4 Assault . | . . . . . . Garrison . | . . . . . . Intercept . | . . . . . . Construction Impeded . | . . . . . . Haulers Reinforced . | . . . . . . Stealth | -11 -10 -10 -10 -9 -8 --------- Run | Scr Mat Min Exi Min Mat Distress Signals 6 | . 1 . . . 5 Communications Jammed . | . . . . . . Distress Signals . | . . . . . . Times Spotted 42 | . 12 3 . 9 18 Peak Tracking Total 6 | . 4 3 . 4 6 Tactical Retreats 2 | . 1 . . . 1 Traps | -11 -10 -10 -10 -9 -8 ------- Run | Scr Mat Min Exi Min Mat Traps Triggered . | . . . . . . Indirectly . | . . . . . . Trap Hack Attempts . | . . . . . . Triggered . | . . . . . . Disarmed . | . . . . . . Reprogrammed . | . . . . . . Reused . | . . . . . . Traps Extracted . | . . . . . . Installed . | . . . . . . Triggered . | . . . . . . Machines | -11 -10 -10 -10 -9 -8 ---------- Run | Scr Mat Min Exi Min Mat Machines Disabled 3 | . 2 . . 1 . Max in Single Turn 1 | . 1 . . 1 . Machines Sabotaged . | . . . . . . Garrisons Compromised . | . . . . . . Overloaded Fab Kills . | . . . . . . Fab Network Shutdowns . | . . . . . . Hacking | -11 -10 -10 -10 -9 -8 --------- Run | Scr Mat Min Exi Min Mat Machines Accessed 5 | . 3 . . 2 . Terminals 3 | . 3 . . . . Fabricators . | . . . . . . Repair Stations . | . . . . . . Recycling Units . | . . . . . . Scanalyzers . | . . . . . . Garrison Access . | . . . . . . Total Hacks 8 | . 6 . . 2 . Successful 4 | . 2 . . 2 . Failed 4 | . 4 . . . . Catastrophic . | . . . . . . Database Lockouts . | . . . . . . Manual 6 | . 6 . . . . Terminals 6 | . 6 . . . . Fabricators . | . . . . . . Repair Stations . | . . . . . . Recycling Units . | . . . . . . Scanalyzers . | . . . . . . Garrison Access . | . . . . . . Terminal Hacks 2 | . . . . 2 . Open Door 2 | . . . . 2 . Fabricator Hacks . | . . . . . . Repair Station Hacks . | . . . . . . Recycling Unit Hacks . | . . . . . . Scanalyzer . | . . . . . . Garrison Access Hacks . | . . . . . . Unauthorized Hacks 2 | . 2 . . . . Terminals 2 | . 2 . . . . Botnet 2 | . 2 . . . . Fabricators . | . . . . . . Repair Stations . | . . . . . . Recycling Units . | . . . . . . Scanalyzers . | . . . . . . Garrison Access . | . . . . . . Data Cores Recovered . | . . . . . . Used . | . . . . . . Hacking Detections 1 | . 1 . . . . Full Trace Events 1 | . 1 . . . . Feedback Events 1 | . 1 . . . . Corruption 1 | . 1 . . . . Feedback Blocked . | . . . . . . Robot Schematics Acquired . | . . . . . . Robots Built . | . . . . . . Matter . | . . . . . . Time . | . . . . . . Total Robot Build Rating . | . . . . . . Part Schematics Acquired . | . . . . . . Parts Built . | . . . . . . Matter . | . . . . . . Time . | . . . . . . Total Part Build Rating . | . . . . . . Parts Repaired . | . . . . . . Time . | . . . . . . Parts Recycled . | . . . . . . Recycled Matter . | . . . . . . Retrieved Matter . | . . . . . . Retrieved Components . | . . . . . . Parts Scanalyzed . | . . . . . . Part Schematics Acquired . | . . . . . . Parts Damaged . | . . . . . . Bothacking | -11 -10 -10 -10 -9 -8 ------------ Run | Scr Mat Min Exi Min Mat Used RIF Installer . | . . . . . . Robots Hacked . | . . . . . . Non-combat . | . . . . . . Combat . | . . . . . . Robot Hacks Applied . | . . . . . . Relay Couplers Released . | . . . . . . Robots Rewired . | . . . . . . Allies Hacked . | . . . . . . Hacks Repelled . | . . . . . . Allies | -11 -10 -10 -10 -9 -8 -------- Run | Scr Mat Min Exi Min Mat Total Allies 4 | . . 4 . . . Largest Group 3 | . . 3 3 2 . Highest-Rated Group 40 | . . 40 40 32 . Highest-Rated Ally 31 | . . 31 16 16 . Total Orders 17 | . . . . . 17 EXPLORE 17 | . . . . . 17 Ally Attacks . | . . . . . . Total Damage . | . . . . . . Kills . | . . . . . . Allies Corrupted 1 | . . . . . 1 Allies Melted . | . . . . . . Intel | -11 -10 -10 -10 -9 -8 ------- Run | Scr Mat Min Exi Min Mat Robot Analysis Total . | . . . . . . Derelict Logs Recovered 3 | . . 2 . 1 . Drone Launches 16 | . . . . . 16 Drone Recoveries . | . . . . . . Exploration | -11 -10 -10 -10 -9 -8 ------------- Run | Scr Mat Min Exi Min Mat Turns Passed 2525 | 4 427 583 626 535 350 Spaces Moved 1398 | 1 232 340 392 299 134 Core . | . . . . . . Treads 1392 | . 227 340 392 299 134 Legs 6 | 1 5 . . . . Wheels . | . . . . . . Hover . | . . . . . . Flight . | . . . . . . Fastest Speed 120 | 120 120 160 160 160 160 Average Speed 160 | 120 159 160 160 160 163 Slowest Speed 166 | 120 160 160 160 160 166 Overloaded Moves . | . . . . . . Propulsion Burnouts . | . . . . . . Robots Hopped . | . . . . . . Cave-ins Triggered 1 | . . 1 . . . Exploration Rate (%) 56 | 2 39 69 87 63 78 Regions Visited 5 Branch Regions 3 Pre-discovered Areas . | . . . . . . Known Exits Taken . | . . . . . . Unknown Exits Taken 5 | 1 1 1 1 1 . Scrap Searched 2 | . . 1 . 1 . Spaces Dug 4 | . . 4 . . . Terrain Destroyed 66 | . 5 4 . . 57 Melee . | . . . . . . Projectile 4 | . . 4 . . . AOE 62 | . 5 . . . 57 Terrain Rammed . | . . . . . . Walls Destroyed . | . . . . . . Machines Disabled . | . . . . . . Actions | -11 -10 -10 -10 -9 -8 --------- Run | Scr Mat Min Exi Min Mat Total 1569 | 4 267 359 391 336 212 Wait 49 | . 14 5 . 3 27 Move 1393 | . 231 339 391 298 134 Hop . | . . . . . . Pick Up 19 | . 6 1 . 8 4 Fast Attach 3 | . 1 1 . 1 . Attach 10 | . 1 1 . 1 7 Detach 3 | . . . . 1 2 Swap 10 | 1 4 1 . 2 2 Drop 14 | 3 . . . 9 2 Fire 68 | . 10 11 . 13 34 Melee . | . . . . . . Ram . | . . . . . . Kick . | . . . . . . Crush . | . . . . . . Escape Stasis . | . . . . . . Rewire . | . . . . . . Trap . | . . . . . . Miscellaneous . | . . . . . . Route ------- -11/Scrapyard -10/Materials (discovered 2 exits: [*Mat] / [*Min]) -10/Mines -10/Exiles -9/Mines -8/Materials (discovered 4 exits: *Fac x3 / [*Sto]) History --------- Turn | Location | Event 5 | -11/Scrapyard | Discovered new exit (range 0) 5 | -11/Scrapyard | Entered Materials 233 | -10/Materials | Discovered new exit (range 16) 233 | -10/Materials | Discovered new exit (range 14) 304 | -10/Materials | Build established: Mutant 432 | -10/Materials | Entered Mines 440 | -10/Mines | Received a Mining Laser from a helpful Derelict 464 | -10/Mines | Learned Materials emergency access door positions 518 | -10/Mines | Crushed by falling debris 588 | -10/Mines | Learned location of 1 exit from Materials 970 | -10/Mines | Assisted by bots powering up and referring to "LRC-V3" 1002 | -10/Mines | Deemed a non-threat by the Exiles lab entrance 1002 | -10/Mines | Discovered new exit (range 5) 1015 | -10/Mines | Entered Exiles 1015 | -10/Exiles | Accompanied by 3 allies 1054 | -10/Exiles | Met 8R-AWN 1081 | -10/Exiles | Met EX-HEX 1137 | -10/Exiles | Met EX-BIN 1251 | -10/Exiles | Met EX-DEC 1388 | -10/Exiles | Visited The Gauntlet 1623 | -10/Exiles | Discovered new exit (range 14) 1641 | -10/Exiles | Entered Mines 1641 | -9/Mines | Accompanied by 2 allies 1647 | -9/Mines | Met a Derelict who couldn't figure out how to use a Trap Extractor 1653 | -9/Mines | Found Powered Armor 1872 | -9/Mines | Core integrity fell below 50% 2054 | -9/Mines | Learned Materials stockpile data 2057 | -9/Mines | Found the Drone Emporium 2063 | -9/Mines | Found Prototype Device 2122 | -9/Mines | Discovered new exit (range 9) 2138 | -9/Mines | Joined a pair of Derelicts in attacking an 0b10 outpost 2176 | -9/Mines | Entered Materials 2176 | -8/Materials | Evolved 4 slots: Propulsion x1, Utility x3 2177 | -8/Materials | Identified exit to Factory 2181 | -8/Materials | Identified Decoy Drone Bay 2204 | -8/Materials | Discovered exit to Factory (range 46) 2222 | -8/Materials | Discovered new exit (range 42) 2233 | -8/Materials | Discovered exit to Factory (range 62) 2510 | -8/Materials | Lost 3 parts (1p2w) 2526 | -8/Materials | Self-destructed Last Messages --------------- 02496_ Acquired 13 matter. 02496_ U-05 Engineer builds a Wall. 02499_ K-01 Serf collects debris. 02500_ Acquired 64 matter. 02501_ Acquired 15 matter. 02502_ Overheating: System interference. 02502_ Signal Interpreter temporarily disabled. 02502_ U-05 Engineer builds a Wall. 02505_ The unstable cave ceiling collapses. 02506_ U-05 Engineer lays Concrete. 02506_ K-01 Serf collects debris. 02508_ U-05 Engineer builds a Wall. 02512_ U-05 Engineer lays Concrete. 02514_ The unstable cave ceiling collapses. 02514_ U-05 Engineer builds a Wall. 02518_ U-05 Engineer lays Concrete. 02519_ U-05 Engineer builds a Wall. 02521_ The unstable cave ceiling collapses. 02523_ R-06 Scavenger collects Lgt. Ion Engine. 02524_ U-05 Engineer builds a Door. Map ----- +----------------------------------------------------+ | ?????????############/######+########### # | | ??????????##????# % # ##?## [[[ # | | ??#????#????? ??# # """ #???# [[! # | | #??#??????? ????# # """ #???# [[] # | | ??#? ???????????# # """ #???######### | | ?????????? ? ?# # #???????????## | | ?????? ?# ? ""??# % # ##???????????? | | ??#?????+ ? """?# ! [# ! #?????#??????? | | ?#??????# """ # [ # #???#??######? | | ???#????? ? ? ## ###+##= ] = #?????##!!!!## | | ????? ?????## ## ## ###########??#?##! !# | | ?#???????### =# #g#?######?#??????#! !# | | ?????????# # %[ * #%#?# ##?????### ## | | ????? # # #?# """ ######### + | | ???? # ! # ### """ #?# # # | | ???? % #u### """ #?#"" # # | | ?#?? # r ## #?#"Y + # | | ???????#?### w + """ #?#"" # # | | ??????????### [ Y## """ #?# # # | | ???????????### ## """ #?# # ## | | ?????????????########### ## #?######## | | ???????????????######## # ""#????????# | | ????????????#??# # Y"########## | | ???????????????# + ""# """"" # ## | | ???????????????# ##### # # ""T"" # ## | | ???????????????# ?######@########## # # | | ??????????????????# ####! # # | | ??????????????????# + + # # | | ???????????????# + | !#### """" / # | | ?????????????? / # !! #??# """"" # # | | ???????????????# ?# ! #??# """"" # # | | ??????????????????###+##########??# # # | | ??????????????????? ?????????#??########## # | | ????????????????? ?????????# ####### ## | | ???????????????? ###??????????# | | ???????????????# ??????????????+ T | | ???????????????#???????????????# | | ???????????????????????????????# ########+### | | ???????????????????????????????####?????????????? | | ????????????????????????????????????????????????? | | ????????????????????????????????????????????????? | | ????????????????????????????????????????????????? | | ????????????????????????????????????????????????? | | ????????????????????????????????????????????????? | | ????????????????????????????????????????????????? | | ????????????????????????????????????????????????? | | ????????????????????????????????????????????????? | | ????????????????????????????????????????????????? | | ????????????????????????????????????????????????? | | ????????????????????????????????????????????????? | +----------------------------------------------------+ Best States ------------- Heat Dissipation 31 Energy Generation 14 Energy Capacity 250 Matter Stores 300 Matter Capacity 300 Sight Range 16 Robot Scan Range 10 Terrain Scan Range 24 Terrain Scan Density 10 Armor Coverage 750 Evasion (%) 40 Recoil Reduction 3 Item Schematics ----------------- None Robot Schematics ------------------ None Fabricated ------------ Nothing Alien Tech Used ----------------- None Achievements -------------- None Challenges ------------ None Game ------ Seed AntimissileGravityAutogun Manual? 0 Play Time 00:18:51 Cumulative 27.6 hours Start 2020.09.24 @ 20:49:38 End 2020.09.24 @ 21:08:36 Sessions 1 Manual Loads 0 Difficulty Rogue Special Mode None Game No. 51 Rogue 14 Adventurer 37 Explorer 0 Win Type - Total 1 Types 0/0/0/1/0/0/0/0/0 Lore% 23 Gallery% 35 Achievement% 40 Wizard Run 0 Options --------- ASCII 0 Keyboard 0 Movement Mouse Keybinds 0 Fullscreen 1 Font 20/SmallcapsGlow Map View 66x50 Tactical HUD 1 Map Filters NONE Filters NONE Steam 1 RUN: d383e1d4-5de0-45c6-9027-7a5f6fed847a